bitfinex-derivatives/quotes_BTCF0:USTF0_20240923
["timestamp","ask_amount","ask_price","bid_price","bid_amount"]
[1727122463718,1.13920087,63433.0,63432.0,0.01077]
[1727122464215,1.019019,63433.0,63432.0,0.01077]
[1727122466502,1.019019,63433.0,63432.0,0.00977]
[1727122466721,1.019019,63433.0,63432.0,0.01077]
[1727122468914,0.658219,63433.0,63432.0,0.01077]
[1727122469211,1.019019,63433.0,63432.0,0.01077]
[1727122470209,0.658219,63433.0,63432.0,0.01077]
[1727122471314,0.77853709,63433.0,63432.0,0.01077]
[1727122478312,0.77853709,63433.0,63432.0,0.002]
[1727122479321,0.658219,63433.0,63432.0,0.17981071]
[1727122484625,0.658219,63433.0,63432.0,0.17989315]
[1727122484826,0.658219,63433.0,63432.0,0.08085508]
[1727122486523,0.658219,63433.0,63432.0,0.002]
[1727122490027,0.658219,63433.0,63432.0,0.08085508]
[1727122490229,0.658219,63433.0,63432.0,0.002]
[1727122490525,0.658219,63433.0,63432.0,0.15967508]
[1727122490526,0.531,63433.0,63432.0,0.15967508]
[1727122490731,0.531,63433.0,63432.0,0.17991143]
[1727122491335,0.531,63433.0,63432.0,0.28991143]
[1727122492534,0.531,63433.0,63432.0,0.29868143]
[1727122493126,0.609819,63433.0,63432.0,0.18868143]
[1727122493329,0.531,63433.0,63432.0,0.26751833]
[1727122493534,0.531,63433.0,63432.0,0.18868143]
[1727122494221,0.7106036,63433.0,63432.0,0.08959]
[1727122495232,0.60041391,63433.0,63432.0,0.08959]
[1727122496126,0.71060844,63433.0,63432.0,0.08959]
[1727122496422,0.60041391,63433.0,63432.0,0.08959]
[1727122496928,0.65136468,63433.0,63432.0,0.08959]
[1727122498237,0.73018368,63433.0,63432.0,0.08959]
[1727122499235,0.67923291,63433.0,63432.0,0.08959]
[1727122499741,0.67923291,63433.0,63432.0,0.19959]
[1727122500127,0.60041391,63433.0,63432.0,0.19959]
[1727122501251,0.531,63433.0,63432.0,0.29855102]
[1727122503037,0.609819,63433.0,63432.0,0.29855102]
[1727122504743,0.609819,63433.0,63432.0,0.10973102]
[1727122505133,0.609819,63433.0,63432.0,0.01077]
[1727122505334,0.157646,63430.0,63429.0,0.07882787]
[1727122505648,0.078825,63428.0,63427.0,0.07882787]
[1727122505847,0.188825,63428.0,63427.0,0.17802875]
[1727122506141,0.188825,63428.0,63427.0,0.07882787]
[1727122507538,0.078826,63427.0,63426.0,0.07882787]
[1727122507736,0.078826,63427.0,63426.0,0.1780189]
[1727122508343,0.078826,63427.0,63423.0,0.07881937]
[1727122508344,0.8338,63427.0,63423.0,0.07881937]
[1727122508544,0.11,63424.0,63418.0,0.0037]
[1727122508754,0.078841,63415.0,63414.0,0.0037]
[1727122508935,0.078842,63414.0,63412.0,0.2045313]
[1727122509134,0.078842,63414.0,63413.0,0.10186959]
[1727122509947,0.078842,63414.0,63413.0,0.10045442]
[1727122510343,0.188842,63414.0,63413.0,0.10045442]
[1727122510543,0.188842,63414.0,63413.0,0.00236517]
[1727122510739,0.188842,63414.0,63407.0,0.0037]
[1727122510740,0.07885,63408.0,63407.0,0.0037]
[1727122510949,0.07885,63408.0,63407.0,0.09819627]
[1727122511150,0.07185,63408.0,63405.0,0.47168]
[1727122511343,0.07185,63408.0,63406.0,0.09827736]
[1727122511545,0.07185,63408.0,63405.0,0.4708]
[1727122511546,0.06485,63408.0,63405.0,0.4708]
[1727122511937,0.05685,63408.0,63405.0,0.4708]
[1727122512249,0.05685,63408.0,63405.0,0.3608]
[1727122512555,0.05685,63408.0,63406.0,0.014]
[1727122512943,0.05685,63408.0,63406.0,0.124]
[1727122514157,0.05685,63408.0,63406.0,0.138]
[1727122514539,0.05685,63408.0,63406.0,0.124]
[1727122514742,0.05785,63408.0,63406.0,0.124]
[1727122515243,0.05785,63408.0,63406.0,0.129]
[1727122515444,0.05785,63408.0,63407.0,0.04714616]
[1727122516353,0.078851,63407.0,63406.0,0.17614616]
[1727122516559,0.065851,63407.0,63406.0,0.115]
[1727122517443,0.065851,63407.0,63406.0,0.129]
[1727122517942,0.065851,63407.0,63406.0,0.124]
[1727122518169,0.061851,63407.0,63406.0,0.124]
[1727122518462,0.061851,63407.0,63406.0,0.202852]
[1727122518955,0.062851,63407.0,63406.0,0.25396702]
[1727122519544,0.172851,63407.0,63406.0,0.06511502]
[1727122521450,0.172851,63407.0,63406.0,0.018]
[1727122522257,0.062851,63407.0,63406.0,0.018]
[1727122523445,0.062851,63407.0,63406.0,0.06511502]
[1727122524070,0.062851,63407.0,63406.0,0.018]
[1727122524352,0.062851,63407.0,63406.0,0.06511502]
[1727122524946,0.062851,63407.0,63406.0,0.07388502]
[1727122526257,0.062851,63407.0,63406.0,0.02677]
[1727122527752,0.062851,63407.0,63406.0,0.105622]
[1727122535561,0.062851,63407.0,63406.0,0.15276236]
[1727122535758,0.062851,63407.0,63406.0,0.105622]
[1727122536357,0.3608,63413.0,63412.0,0.078845]
[1727122536673,0.3608,63413.0,63412.0,0.12609101]
[1727122536876,0.3608,63413.0,63412.0,0.078845]
[1727122537058,0.3608,63413.0,63412.0,0.124845]
[1727122537457,0.3618,63413.0,63412.0,0.131845]
[1727122538765,0.3618,63413.0,63412.0,0.32410216]
[1727122539069,0.3628,63413.0,63412.0,0.33210216]
[1727122539264,0.3628,63413.0,63412.0,0.33210469]
[1727122539459,0.3628,63413.0,63412.0,0.23757339]
[1727122539662,0.002,63413.0,63412.0,0.43282485]
[1727122539861,0.00088,63415.0,63414.0,0.157684]
[1727122540063,0.0037,63420.0,63419.0,0.078836]
[1727122540265,0.0037,63427.0,63419.0,0.68493485]
[1727122540567,0.00236537,63435.0,63429.0,0.078824]
[1727122540568,0.082521,63431.0,63429.0,0.078824]
[1727122540772,0.48,63430.0,63429.0,0.188824]
[1727122541662,0.558823,63430.0,63429.0,0.188824]
[1727122542672,0.568823,63430.0,63429.0,0.189824]
[1727122543268,0.568823,63430.0,63429.0,0.079824]
[1727122543467,0.568823,63430.0,63429.0,0.080824]
[1727122544263,0.578823,63430.0,63429.0,0.080824]
[1727122545370,0.578823,63430.0,63429.0,0.12795943]
[1727122546479,0.578823,63430.0,63429.0,0.080824]
[1727122549671,0.578823,63430.0,63419.0,0.46899251]
[1727122549672,0.078835,63420.0,63419.0,0.00112]
[1727122549871,0.4708,63420.0,63404.0,0.0477]
[1727122550075,0.11,63407.0,63405.0,0.078853]
[1727122550277,0.47,63406.0,63405.0,0.078853]
[1727122551880,0.471,63406.0,63405.0,0.100853]
[1727122552378,0.472,63406.0,63405.0,0.100853]
[1727122552567,0.472,63406.0,63405.0,0.022]
[1727122555782,0.550852,63406.0,63405.0,0.022]
[1727122561972,0.550852,63406.0,63405.0,0.06913933]
[1727122565779,0.002,63406.0,63405.0,0.100854]
[1727122569186,0.47,63412.0,63411.0,0.078846]
[1727122569375,0.0037,63420.0,63411.0,0.5208]
[1727122569588,0.078838,63418.0,63416.0,0.07884]
[1727122569796,0.078839,63417.0,63416.0,0.07884]
[1727122571179,0.078839,63417.0,63416.0,0.08184]
[1727122572786,0.078839,63417.0,63416.0,0.08584]
[1727122573690,0.078839,63417.0,63416.0,0.14869069]
[1727122573884,0.078839,63417.0,63416.0,0.08584]
[1727122574391,0.078834,63421.0,63416.0,0.007]
[1727122574592,0.078834,63421.0,63419.0,0.078835]
[1727122575099,0.078835,63420.0,63419.0,0.078835]
[1727122575790,0.078835,63420.0,63419.0,0.14270803]
[1727122576795,0.078835,63420.0,63419.0,0.12700698]
[1727122577888,0.078835,63420.0,63419.0,0.079835]
[1727122578784,0.58088,63422.0,63419.0,0.079835]
[1727122578785,0.00088,63422.0,63421.0,0.078834]
[1727122579100,0.0074,63429.0,63425.0,0.078828]
[1727122579101,0.078827,63427.0,63425.0,0.078828]
[1727122579284,0.078828,63426.0,63425.0,0.078828]
[1727122579600,0.548828,63426.0,63425.0,0.078828]
[1727122580777,0.554828,63426.0,63425.0,0.079828]
[1727122581487,0.554828,63426.0,63425.0,0.12699075]
[1727122581695,0.554828,63426.0,63425.0,0.079828]
[1727122581887,0.560828,63426.0,63425.0,0.12799024]
[1727122582196,0.560828,63426.0,63425.0,0.080828]
[1727122582389,0.560828,63426.0,63425.0,0.12798143]
[1727122583583,0.670828,63426.0,63425.0,0.12798143]
[1727122583781,0.74248449,63426.0,63425.0,0.080828]
[1727122584389,0.6963863,63426.0,63425.0,0.080828]
[1727122584692,0.74248863,63426.0,63425.0,0.080828]
[1727122585391,0.6963863,63426.0,63425.0,0.080828]
[1727122590597,0.74262215,63426.0,63425.0,0.080828]
[1727122591788,0.670828,63426.0,63425.0,0.14372136]
[1727122592496,0.482,63426.0,63425.0,0.14372136]
[1727122592700,0.482,63426.0,63425.0,0.080828]
[1727122592884,0.012,63426.0,63425.0,0.080828]
[1727122593083,0.012,63426.0,63425.0,0.126328]
[1727122594591,0.012,63426.0,63425.0,0.22287179]
[1727122595299,0.012,63426.0,63425.0,0.2228886]
[1727122595692,0.012,63426.0,63425.0,0.30147996]
[1727122596400,0.012,63426.0,63425.0,0.30149149]
[1727122596795,0.012,63426.0,63425.0,0.2228886]
[1727122599999,0.012,63426.0,63425.0,0.15456695]
[1727122600306,0.012,63426.0,63425.0,0.25129323]
[1727122604203,0.012,63426.0,63425.0,0.34581101]
[1727122604902,0.012,63426.0,63425.0,0.34582027]
[1727122606615,0.012,63426.0,63425.0,0.25130249]
[1727122606908,0.012,63426.0,63425.0,0.15456695]
[1727122607311,0.11215932,63426.0,63425.0,0.15456695]
[1727122607507,0.13771635,63426.0,63425.0,0.15456695]
[1727122607903,0.13771635,63426.0,63425.0,0.126328]
[1727122608221,0.13771635,63426.0,63425.0,0.080828]
[1727122608511,0.13780996,63426.0,63425.0,0.080828]
[1727122608708,0.26352631,63426.0,63425.0,0.080828]
[1727122609102,0.13771635,63426.0,63425.0,0.080828]
[1727122610420,0.21654435,63426.0,63425.0,0.080828]
[1727122613412,0.21649216,63426.0,63425.0,0.080828]
[1727122613817,0.21096184,63426.0,63425.0,0.080828]
[1727122614018,0.16269714,63426.0,63425.0,0.002]
[1727122614216,0.25609714,63426.0,63425.0,0.002]
[1727122614415,0.25592886,63426.0,63425.0,0.002]
[1727122616116,0.80589647,63426.0,63425.0,0.002]
[1727122616324,0.69555686,63426.0,63425.0,0.002]
[1727122616521,0.80589647,63426.0,63425.0,0.002]
[1727122616914,0.69555686,63426.0,63425.0,0.002]
[1727122619326,0.69546835,63426.0,63425.0,0.002]
[1727122619812,0.69546835,63426.0,63425.0,0.01077]
[1727122621927,0.623856,63426.0,63425.0,0.01077]
[1727122622519,0.623856,63426.0,63425.0,0.07374821]
[1727122623419,0.623856,63426.0,63425.0,0.01077]
[1727122623618,0.623856,63426.0,63425.0,0.07374821]
[1727122626522,0.623856,63426.0,63425.0,0.01077]
[1727122627623,0.623856,63426.0,63425.0,0.07374821]
[1727122629132,0.623856,63426.0,63425.0,0.01077]
[1727122630424,0.623856,63426.0,63425.0,0.07374821]
[1727122630928,0.623856,63426.0,63425.0,0.01077]
[1727122631131,0.623856,63426.0,63425.0,0.07374821]
[1727122631529,0.623856,63426.0,63425.0,0.01077]
[1727122631735,0.623856,63426.0,63425.0,0.07374821]
[1727122632436,0.623856,63426.0,63425.0,0.01077]
[1727122633534,0.733856,63426.0,63425.0,0.01077]
[1727122633737,0.623856,63426.0,63425.0,0.07374821]
[1727122633938,0.733856,63426.0,63425.0,0.07374821]
[1727122634236,0.685756,63426.0,63425.0,0.07374821]
[1727122634439,0.606928,63426.0,63425.0,0.07374821]
[1727122635234,0.561628,63426.0,63425.0,0.01077]
[1727122636935,0.63324368,63426.0,63425.0,0.002]
[1727122638145,0.16244368,63426.0,63425.0,0.002]
[1727122638540,0.16244368,63426.0,63425.0,0.080829]
[1727122642145,0.16261809,63426.0,63425.0,0.080829]
[1727122643949,0.090828,63426.0,63425.0,0.17779687]
[1727122644144,0.090828,63426.0,63425.0,0.2565817]
[1727122644349,0.090828,63426.0,63425.0,0.17780309]
[1727122644545,0.090828,63426.0,63425.0,0.002]
[1727122644937,0.090828,63426.0,63425.0,0.08078483]
[1727122645451,0.1186071,63426.0,63425.0,0.08078483]
[1727122645636,0.1186071,63426.0,63425.0,0.002]
[1727122646331,0.5886071,63426.0,63425.0,0.002]
[1727122646750,0.5886071,63426.0,63425.0,0.08078483]
[1727122646948,0.9494071,63426.0,63425.0,0.002]
[1727122647247,0.9494071,63426.0,63421.0,0.07878483]
[1727122647248,0.078833,63422.0,63421.0,0.07878483]
[1727122647436,0.078834,63421.0,63420.0,0.07878483]
[1727122647635,0.188834,63421.0,63420.0,0.07878483]
[1727122648338,0.078835,63420.0,63419.0,0.07878483]
[1727122648652,0.188835,63420.0,63419.0,0.17637076]
[1727122648949,0.188835,63420.0,63419.0,0.17640037]
[1727122649840,0.188835,63420.0,63419.0,0.07881444]
[1727122650343,0.188835,63420.0,63418.0,0.07881444]
[1727122650344,0.078836,63419.0,63418.0,0.07881444]
[1727122650541,0.188836,63419.0,63418.0,0.17640025]
[1727122651956,0.188836,63419.0,63418.0,0.17740025]
[1727122652455,0.188836,63419.0,63418.0,0.17840025]
[1727122652652,0.188836,63419.0,63418.0,0.08081444]
[1727122652857,0.188836,63419.0,63418.0,0.17837617]
[1727122653543,0.188836,63419.0,63418.0,0.08081444]
[1727122653544,0.11,63419.0,63418.0,0.08081444]
[1727122653855,0.11,63419.0,63418.0,0.17836995]
[1727122654045,0.11,63419.0,63418.0,0.08081444]
[1727122654553,0.11,63419.0,63418.0,0.002]
[1727122654941,0.188836,63419.0,63418.0,0.002]
[1727122655142,0.11,63419.0,63418.0,0.002]
[1727122659050,0.20868115,63419.0,63418.0,0.002]
[1727122659255,0.05325145,63419.0,63418.0,0.190838]
[1727122659452,0.02768946,63419.0,63418.0,0.190838]
[1727122659655,0.02768946,63419.0,63418.0,0.61572922]
[1727122659656,0.02556199,63419.0,63418.0,0.61572922]
[1727122659855,0.09450704,63423.0,63418.0,0.53689122]
[1727122660060,0.09450704,63423.0,63421.0,0.11]
[1727122660264,0.09450704,63424.0,63423.0,0.078831]
[1727122661062,0.09450704,63424.0,63423.0,0.188831]
[1727122661452,0.09450704,63425.0,63424.0,0.07883]
[1727122661664,0.12313936,63425.0,63424.0,0.12463]
[1727122661861,0.14869804,63425.0,63424.0,0.17053]
[1727122662662,0.15369804,63425.0,63424.0,0.17053]
[1727122663564,0.15869804,63425.0,63424.0,0.17153]
[1727122664866,0.064191,63425.0,63424.0,0.17153]
[1727122665959,0.06419029,63425.0,63424.0,0.17153]
[1727122666964,0.03863232,63425.0,63424.0,0.17153]
[1727122672267,0.03863232,63425.0,63424.0,0.25036]
[1727122673957,0.08109465,63425.0,63424.0,0.25036]
[1727122674195,0.08109387,63425.0,63424.0,1.40219]
[1727122674363,0.0037,63429.0,63428.0,0.078825]
[1727122674570,0.14162618,63434.0,63430.0,0.078823]
[1727122674770,0.02772467,63434.0,63433.0,0.4708]
[1727122674959,0.11256696,63436.0,63435.0,0.078816]
[1727122675163,0.05497674,63436.0,63435.0,0.078816]
[1727122675373,0.11252475,63436.0,63435.0,0.078816]
[1727122675564,0.11249181,63436.0,63435.0,0.078816]
[1727122675962,0.141475,63436.0,63435.0,0.078816]
[1727122676358,0.03134864,63436.0,63435.0,0.078816]
[1727122676667,0.15144771,63436.0,63435.0,0.079816]
[1727122677462,0.04134864,63436.0,63435.0,0.079816]
[1727122678269,0.15144771,63436.0,63435.0,0.079816]
[1727122678467,0.04134864,63436.0,63435.0,0.079816]
[1727122678681,0.05034864,63436.0,63435.0,0.080816]
[1727122680975,0.04798319,63436.0,63435.0,0.080816]
[1727122684584,0.0037,63441.0,63435.0,0.080816]
[1727122684778,0.03185751,63445.0,63444.0,0.078805]
[1727122684971,0.47,63445.0,63444.0,0.188805]
[1727122685165,0.078798,63451.0,63444.0,0.188805]
[1727122685373,0.078798,63451.0,63441.0,0.12589158]
[1727122685374,0.078798,63451.0,63450.0,0.188798]
[1727122685879,0.548798,63451.0,63450.0,0.188798]
[1727122686092,0.47,63451.0,63450.0,0.188798]
[1727122686288,0.49845561,63451.0,63450.0,0.188798]
[1727122686470,0.52145561,63451.0,63450.0,0.189798]
[1727122688078,0.51145561,63451.0,63450.0,0.190798]
[1727122688283,0.03145561,63451.0,63450.0,0.189798]
[1727122688483,0.02845561,63451.0,63450.0,0.189798]
[1727122688679,0.003,63451.0,63450.0,0.190798]
[1727122689079,0.04894328,63451.0,63450.0,0.002]
[1727122689271,0.0563423,63451.0,63450.0,0.112]
[1727122689478,0.12783359,63451.0,63450.0,0.112]
[1727122689873,0.12783359,63451.0,63450.0,0.190798]
[1727122691973,0.25337837,63451.0,63450.0,0.190798]
[1727122692577,0.07449129,63451.0,63450.0,0.190798]
[1727122693080,0.07385577,63451.0,63450.0,0.190798]
[1727122694074,0.003,63451.0,63450.0,0.190798]
[1727122694270,0.02854744,63451.0,63450.0,0.190798]
[1727122694477,0.11280595,63451.0,63450.0,0.190798]
[1727122695182,0.18366172,63451.0,63450.0,0.190798]
[1727122695676,0.07385577,63451.0,63450.0,0.190798]
[1727122696080,0.003,63451.0,63450.0,0.190798]
[1727122705394,0.15861426,63451.0,63450.0,0.080798]
[1727122705586,0.31590037,63451.0,63450.0,0.078798]
[1727122706783,0.20590037,63451.0,63450.0,0.078798]
[1727122707896,0.20590037,63451.0,63450.0,0.188798]
[1727122708297,0.33144515,63451.0,63450.0,0.188798]
[1727122708600,0.33162286,63451.0,63450.0,0.188798]
[1727122708898,0.33162154,63451.0,63450.0,0.188798]
[1727122709590,0.20590037,63451.0,63450.0,0.188798]
[1727122710894,0.30809407,63451.0,63450.0,0.188798]
[1727122711093,0.2233352,63451.0,63450.0,0.188798]
[1727122711298,0.081799,63451.0,63450.0,0.188798]
[1727122711796,0.081799,63451.0,63450.0,0.2517343]
[1727122712096,0.081799,63451.0,63450.0,0.188798]
[1727122712301,0.081799,63451.0,63450.0,0.2517343]
[1727122713396,0.081799,63451.0,63450.0,0.188798]
[1727122713696,0.081799,63451.0,63450.0,0.197568]
[1727122715501,0.081799,63451.0,63450.0,0.27638244]
[1727122716192,0.081799,63451.0,63450.0,0.19758444]
[1727122716390,0.631398,63451.0,63450.0,0.00877]
[1727122716590,0.710197,63451.0,63450.0,0.00877]
[1727122716798,2.252997,63451.0,63450.0,0.00877]
[1727122717593,0.157606,63446.0,63445.0,0.05088618]
[1727122717788,0.078798,63450.0,63443.0,0.04718618]
[1727122717789,0.078805,63444.0,63443.0,0.04718618]
[1727122717991,0.4708,63444.0,63443.0,0.04717959]
[1727122718200,0.078808,63442.0,63440.0,0.05088247]
[1727122718502,0.11,63441.0,63437.0,0.00606456]
[1727122718689,0.266626,63438.0,63437.0,0.00236456]
[1727122719597,0.157626,63438.0,63437.0,0.00236456]
[1727122720303,0.267626,63438.0,63437.0,0.00236456]
[1727122721588,0.194813,63438.0,63437.0,0.00436456]
[1727122722188,0.084813,63438.0,63437.0,0.11436456]
[1727122722394,0.084813,63438.0,63437.0,0.112]
[1727122724900,0.084813,63438.0,63437.0,0.002]
[1727122730608,0.194813,63438.0,63437.0,0.002]
[1727122739008,0.084813,63438.0,63437.0,0.002]
[1727122739316,0.194813,63438.0,63437.0,0.002]
[1727122742199,0.006,63438.0,63437.0,0.080814]
[1727122742404,0.006,63438.0,63437.0,0.1437238]
[1727122742606,0.006,63438.0,63437.0,0.080814]
[1727122742802,0.006,63438.0,63437.0,0.15962844]
[1727122742998,0.006,63438.0,63437.0,0.25752772]
[1727122743415,0.006,63438.0,63437.0,0.17871328]
[1727122744411,0.006,63438.0,63437.0,0.27316312]
[1727122744713,0.006,63438.0,63437.0,0.17871328]
[1727122745211,0.006,63438.0,63437.0,0.18748328]
[1727122745509,0.006,63438.0,63437.0,0.28193312]
[1727122746502,0.006,63438.0,63437.0,0.18748328]
[1727122746705,0.006,63438.0,63437.0,0.18764343]
[1727122748900,0.006,63438.0,63437.0,0.18764864]
[1727122749412,0.006,63438.0,63437.0,0.089584]
[1727122749612,0.006,63438.0,63437.0,0.51333752]
[1727122749805,0.02856407,63443.0,63437.0,0.450384]
[1727122750006,0.0037,63446.0,63445.0,0.078804]
[1727122750205,0.078799,63449.0,63442.0,0.11]
[1727122750411,0.078799,63449.0,63443.0,0.0489]
[1727122750616,0.0255499,63448.0,63443.0,0.0489]
[1727122751015,0.0255499,63448.0,63447.0,0.078801]
[1727122751016,0.1043519,63448.0,63447.0,0.078801]
[1727122751714,0.1103519,63448.0,63447.0,0.078801]
[1727122753115,0.1113519,63448.0,63447.0,0.079801]
[1727122753316,0.1053519,63448.0,63447.0,0.080801]
[1727122753909,0.10535281,63448.0,63447.0,0.080801]
[1727122755218,0.079802,63448.0,63447.0,0.080801]
[1727122755418,0.10535256,63448.0,63447.0,0.080801]
[1727122755921,0.10535256,63448.0,63447.0,0.002]
[1727122756113,0.10535256,63448.0,63447.0,0.080801]
[1727122756415,0.10535256,63448.0,63447.0,0.25373683]
[1727122756416,0.001,63448.0,63447.0,0.25373683]
[1727122756624,0.001,63448.0,63447.0,0.190801]
[1727122764110,0.02881276,63449.0,63448.0,0.0788]
[1727122764318,0.02881276,63449.0,63447.0,0.20849744]
[1727122764319,0.078794,63453.0,63452.0,0.078795]
[1727122764629,0.57434214,63453.0,63452.0,0.188795]
[1727122765835,0.57434214,63453.0,63452.0,0.189795]
[1727122766427,0.6030936,63453.0,63452.0,0.189795]
[1727122766830,0.1330936,63453.0,63452.0,0.189795]
[1727122767137,0.2440936,63453.0,63452.0,0.080795]
[1727122768329,0.24409352,63453.0,63452.0,0.080795]
[1727122771331,0.21854546,63453.0,63452.0,0.080795]
[1727122775621,0.21854546,63453.0,63452.0,0.002]
[1727122776925,0.21854546,63453.0,63452.0,0.01077]
[1727122779323,0.28959501,63453.0,63452.0,0.01077]
[1727122782728,0.75959501,63453.0,63452.0,0.01077]
[1727122783137,0.75962672,63453.0,63452.0,0.01077]
[1727122786432,0.68854546,63453.0,63452.0,0.10817794]
[1727122787926,0.68854546,63453.0,63452.0,0.10818939]
[1727122788537,0.68854546,63453.0,63452.0,0.18698439]
[1727122790324,0.57854546,63453.0,63452.0,0.18698439]
[1727122791926,0.10854546,63453.0,63452.0,0.18698439]
[1727122792125,0.02975146,63453.0,63452.0,0.29698439]
[1727122792333,0.001,63453.0,63452.0,0.43765007]
[1727122792736,0.001,63453.0,63452.0,0.43724615]
[1727122794337,0.09552969,63453.0,63452.0,0.31262487]
[1727122794531,0.12107432,63453.0,63452.0,0.24393348]
[1727122795332,0.02654463,63453.0,63452.0,0.24393348]
[1727122795937,0.02654463,63453.0,63452.0,0.13393348]
[1727122796242,0.02654463,63453.0,63452.0,0.24393348]
[1727122796946,0.02654463,63453.0,63452.0,0.24393298]
[1727122797527,0.001,63453.0,63452.0,0.21543058]
[1727122797836,0.001,63453.0,63452.0,0.10543058]
[1727122798140,0.001,63453.0,63452.0,0.21543058]
[1727122798744,0.001,63453.0,63452.0,0.25484752]
[1727122798947,0.001,63453.0,63452.0,0.17605252]
[1727122799130,0.001,63453.0,63452.0,0.06605252]
[1727122799131,0.079794,63453.0,63452.0,0.06605252]
[1727122799334,0.1511353,63453.0,63452.0,0.002]
[1727122799739,0.6211353,63453.0,63452.0,0.002]
[1727122800545,0.6211353,63453.0,63452.0,0.001]
[1727122800743,0.6211353,63453.0,63452.0,0.002]
[1727122800943,0.62092728,63453.0,63452.0,0.002]
[1727122801159,0.15092728,63453.0,63452.0,0.002]
[1727122801539,0.079794,63453.0,63452.0,0.08066701]
[1727122801737,0.549794,63453.0,63452.0,0.08066701]
[1727122802552,0.549794,63453.0,63452.0,0.17795034]
[1727122802747,0.549794,63453.0,63452.0,0.08066701]
[1727122803366,0.079794,63453.0,63452.0,0.08066701]
[1727122803643,0.079794,63453.0,63452.0,0.1779621]
[1727122803852,0.549794,63453.0,63452.0,0.1779621]
[1727122804450,0.549794,63453.0,63452.0,0.17795194]
[1727122805143,0.549794,63453.0,63452.0,0.08066701]
[1727122807440,0.549794,63453.0,63452.0,0.17794429]
[1727122808242,0.549794,63453.0,63452.0,0.08066701]
[1727122809043,0.549794,63453.0,63452.0,0.002]
[1727122809246,0.659794,63453.0,63452.0,0.01077]
[1727122809442,0.189794,63453.0,63452.0,0.01077]
[1727122809644,0.189794,63453.0,63450.0,0.07866701]
[1727122809645,0.15759,63452.0,63450.0,0.06293696]
[1727122809845,0.157598,63449.0,63448.0,0.06293696]
[1727122810051,0.157598,63449.0,63446.0,0.06293696]
[1727122810052,0.078801,63447.0,63446.0,0.06293696]
[1727122810644,0.078803,63446.0,63441.0,0.3608]
[1727122810845,0.128703,63446.0,63445.0,0.06293429]
[1727122811156,0.128703,63446.0,63441.0,0.3608]
[1727122811157,0.078808,63442.0,63441.0,0.3608]
[1727122811453,0.078808,63442.0,63441.0,0.45789082]
[1727122812545,0.078808,63442.0,63441.0,0.3608]
[1727122812853,0.077808,63442.0,63441.0,0.3608]
[1727122813248,0.07881,63440.0,63438.0,0.078813]
[1727122813555,0.07881,63440.0,63439.0,0.20051873]
[1727122813945,0.07881,63440.0,63439.0,0.17587626]
[1727122814455,0.078811,63439.0,63438.0,0.3618]
[1727122814640,0.078811,63439.0,63438.0,0.46185716]
[1727122814865,0.078811,63439.0,63438.0,0.3648]
[1727122815058,0.078811,63439.0,63438.0,0.3618]
[1727122815244,0.077811,63439.0,63438.0,0.3618]
[1727122815953,0.077811,63439.0,63438.0,0.3608]
[1727122816453,0.077811,63439.0,63432.0,0.0979]
[1727122816651,0.11,63435.0,63432.0,0.0942]
[1727122816950,0.109,63435.0,63432.0,0.0451]
[1727122817554,0.11,63435.0,63432.0,0.0521]
[1727122818148,0.11,63435.0,63432.0,0.0611]
[1727122819053,0.078819,63433.0,63432.0,0.0611]
[1727122819849,0.078819,63433.0,63432.0,0.0541]
[1727122820051,0.078819,63433.0,63432.0,0.0611]
[1727122821057,0.078819,63433.0,63432.0,0.13992]
[1727122823752,0.10662469,63435.0,63434.0,0.078818]
[1727122825053,0.10662469,63435.0,63434.0,0.084818]
[1727122825882,0.10662469,63435.0,63434.0,0.089818]
[1727122826058,0.21662469,63435.0,63434.0,0.011]
[1727122826860,0.29544069,63435.0,63434.0,0.011]
[1727122827061,0.65624069,63435.0,63434.0,0.011]
[1727122828763,0.54624069,63435.0,63434.0,0.011]
[1727122828959,0.65624069,63435.0,63434.0,0.011]
[1727122833471,0.10662469,63435.0,63434.0,0.011]
[1727122833670,0.10662469,63435.0,63434.0,0.089818]
[1727122833861,0.10662469,63435.0,63434.0,0.011]
[1727122836556,0.10662469,63435.0,63434.0,0.07384103]
[1727122837574,0.10662469,63435.0,63434.0,0.011]
[1727122839973,0.10662469,63435.0,63434.0,0.01977]
[1727122840567,0.13217985,63435.0,63434.0,0.01977]
[1727122843964,0.10662469,63435.0,63434.0,0.01977]
[1727122844162,0.10662469,63435.0,63434.0,0.098588]
[1727122844574,0.13217887,63435.0,63434.0,0.098588]
[1727122844781,0.10662469,63435.0,63434.0,0.098588]
[1727122845072,0.1321787,63435.0,63434.0,0.098588]
[1727122845272,0.0533627,63435.0,63434.0,0.208588]
[1727122845477,0.08251,63440.0,63439.0,0.078811]
[1727122845676,0.10436305,63440.0,63439.0,0.078811]
[1727122846667,0.10696015,63440.0,63439.0,0.17576925]
[1727122846975,0.078811,63439.0,63438.0,0.0786956]
[1727122847186,0.188811,63439.0,63437.0,0.0786956]
[1727122847379,0.188811,63439.0,63438.0,0.0786956]
[1727122847572,0.266624,63439.0,63438.0,0.0786956]
[1727122847883,0.078816,63435.0,63434.0,0.0874656]
[1727122848087,0.186816,63435.0,63434.0,0.00877]
[1727122848476,0.185816,63435.0,63434.0,0.00877]
[1727122849083,0.264632,63435.0,63434.0,0.01477]
[1727122849379,0.264632,63435.0,63434.0,0.01977]
[1727122849581,0.734632,63435.0,63434.0,0.01977]
[1727122850580,1.65292,63435.0,63430.0,0.0037]
[1727122850787,1.65292,63435.0,63419.0,0.00236511]
[1727122850788,0.078825,63428.0,63427.0,0.06298661]
[1727122850975,0.078826,63427.0,63426.0,0.06298661]
[1727122851176,0.157652,63427.0,63426.0,0.06298661]
[1727122851484,0.078826,63427.0,63422.0,0.06298661]
[1727122851784,0.4608,63423.0,63422.0,0.06298661]